bitfinex-derivatives/quotes_SOLF0:USTF0_20241212
["timestamp","ask_amount","ask_price","bid_price","bid_amount"]
[1734010285086,3.02,231.91,231.81,7.32731046]
[1734010285481,37.94209921,232.05,231.84,32.82405756]
[1734010285688,5.11804165,232.05,231.88,32.82405756]
[1734010285892,5.11804165,232.05,231.89,3.02]
[1734010286092,5.11804165,232.05,231.92,32.82405756]
[1734010286093,3.02,232.05,231.92,32.82405756]
[1734010286487,3.02,232.05,231.98,2.1545]
[1734010286488,5.1739,232.05,231.98,2.1545]
[1734010286693,3.02,232.05,231.89,3.02]
[1734010286990,3.02,232.05,231.92,2.155]
[1734010287192,3.02,232.05,231.89,3.02]
[1734010287591,3.02,232.05,231.97,2.1546]
[1734010287889,3.02,232.05,231.89,3.02]
[1734010288084,3.02,232.05,231.93,2.1549]
[1734010288284,3.02,232.05,231.89,3.02]
[1734010288588,35.84405756,232.05,231.91,2.1552]
[1734010288793,32.82405756,232.01,231.84,32.82405756]
[1734010289087,2.1551,231.93,231.87,2.1555]
[1734010289289,3.02,231.95,231.81,7.32731046]
[1734010289485,3.02,231.94,231.81,7.32731046]
[1734010289694,2.1555,231.88,231.83,2.1559]
[1734010289889,3.02,231.94,231.81,2.15693887]
[1734010290192,32.82405756,231.93,231.81,2.15693887]
[1734010290391,1.0,232.04,231.81,5.17693887]
[1734010290587,1.0,232.04,231.84,32.82405756]
[1734010290588,33.82405756,232.04,231.84,32.82405756]
[1734010291086,33.82405756,232.04,231.85,3.02]
[1734010292693,2.1548,231.96,231.91,2.1551]
[1734010292889,2.1548,231.96,231.85,3.02]
[1734010293187,3.02,232.0,231.85,3.02]
[1734010293391,35.84405756,232.0,231.79,38.05456477]
[1734010293588,35.84405756,232.0,231.79,5.23050721]
[1734010293589,32.82405756,231.96,231.79,5.23050721]
[1734010293890,2.1553,231.9,231.83,2.1559]
[1734010294089,3.02,231.9,231.83,2.1559]
[1734010294494,2.1555,231.88,231.83,2.1559]
[1734010294792,3.02,231.9,231.83,2.1559]
[1734010295293,3.02,231.9,231.78,5.18546274]
[1734010295495,5.1753,231.9,231.85,2.1557]
[1734010295798,5.1753,231.9,231.78,5.18546274]
[1734010295799,3.02,231.9,231.78,5.18546274]
[1734010296093,2.1559,231.84,231.73,3.02]
[1734010296296,3.02,231.9,231.73,3.02]
[1734010296986,3.02,231.9,231.81,2.1561]
[1734010297195,3.02,231.9,231.77,5.07365799]
[1734010297393,3.02,231.9,231.71,32.82405756]
[1734010297595,2.1561,231.82,231.71,32.82405756]
[1734010297894,3.02,231.84,231.71,32.82405756]
[1734010298095,3.02,231.86,231.71,32.82405756]
[1734010298592,3.02,231.86,231.73,5.16587274]
[1734010299088,2.1561,231.82,231.73,5.16587274]
[1734010299286,3.02,231.86,231.71,32.82405756]
[1734010299591,3.02,231.86,231.7,3.02]
[1734010299788,3.02,231.86,231.71,5.1296319]
[1734010300398,3.02,231.86,231.67,32.82405756]
[1734010300894,32.82405756,231.84,231.63,32.82405756]
[1734010301195,32.82405756,231.8,231.63,2.15861503]
[1734010301399,3.02,231.79,231.65,2.1576]
[1734010301600,3.02,231.79,231.63,2.15861503]
[1734010302092,3.02,231.79,231.63,7.35570862]
[1734010302498,3.02,231.79,231.63,2.15861503]
[1734010302998,2.1573,231.69,231.64,2.1577]
[1734010303194,2.96,231.69,231.63,2.15861503]
[1734010304498,2.96,231.69,231.64,2.1577]
[1734010304499,5.1173,231.69,231.64,2.1577]
[1734010305700,2.1574,231.68,231.63,2.15861503]
[1734010305898,2.96,231.69,231.63,2.15861503]
[1734010306695,2.1576,231.65,231.63,2.15861503]
[1734010307793,2.96,231.69,231.63,2.15861503]
[1734010307999,2.1577,231.64,231.63,2.15861503]
[1734010309203,2.1579,231.62,231.56,2.1584]
[1734010309401,2.1579,231.62,231.57,2.1584]
[1734010309800,2.96,231.63,231.54,5.24560762]
[1734010310004,2.96,231.67,231.54,5.24560762]
[1734010312204,2.96,231.67,231.49,32.82405756]
[1734010312403,2.96,231.67,231.5,0.79330455]
[1734010312802,2.1582,231.6,231.54,2.1586]
[1734010313007,2.96,231.67,231.45,107.48195587]
[1734010313205,2.96,231.67,231.51,5.27542202]
[1734010313402,2.1583,231.58,231.53,2.1587]
[1734010313603,2.1583,231.58,231.51,5.27542202]
[1734010313803,2.96,231.61,231.51,5.27542202]
[1734010314000,2.96,231.61,231.45,107.48195587]
[1734010314201,2.96,231.61,231.46,0.79343687]
[1734010314608,2.1583,231.58,231.46,0.79343687]
[1734010314804,2.1583,231.58,231.49,5.11377192]
[1734010315010,2.1585,231.57,231.5,2.1589]
[1734010315207,2.96,231.61,231.49,5.11377192]
[1734010315603,2.1581,231.6,231.54,2.1586]
[1734010315804,2.96,231.61,231.49,5.11377192]
[1734010316711,2.96,231.61,231.55,2.1585]
[1734010316712,2.1581,231.6,231.55,2.1585]
[1734010317410,2.1581,231.6,231.54,2.1586]
[1734010317613,2.96,231.61,231.49,25.42297889]
[1734010317910,2.96,231.61,231.49,5.11377192]
[1734010318206,2.96,231.61,231.45,20.30920697]
[1734010318510,2.96,231.61,231.48,5.06381088]
[1734010319204,2.1586,231.55,231.5,2.159]
[1734010319401,2.96,231.55,231.41,20.30920697]
[1734010319710,2.1592,231.49,231.44,2.1596]
[1734010319906,2.96,231.55,231.41,5.1865675]
[1734010320107,2.96,231.55,231.37,20.30920697]
[1734010320316,20.30920697,231.54,231.34,74.70112868]
[1734010320515,20.30920697,231.5,231.35,0.79391365]
[1734010320710,2.96,231.49,231.34,2.16132099]
[1734010321208,2.1601,231.39,231.34,2.16132099]
[1734010321408,2.96,231.4,231.34,2.16132099]
[1734010321800,2.1604,231.35,231.34,2.16132099]
[1734010322008,20.30920697,231.38,231.19,20.30920697]
[1734010322209,20.30920697,231.38,231.2,0.79430338]
[1734010322404,20.30920697,231.38,231.21,0.79430338]
[1734010322405,2.1607,231.32,231.21,0.79430338]
[1734010322602,2.1607,231.32,231.22,0.79430338]
[1734010322603,23.26920697,231.32,231.22,0.79430338]
[1734010322907,23.26920697,231.32,231.11,20.30920697]
[1734010323103,20.30920697,231.28,231.12,0.79443606]
[1734010323304,2.1616,231.23,231.13,0.79443606]
[1734010323611,2.96,231.22,231.14,0.79443606]
[1734010323816,2.96,231.22,231.03,5.94673445]
[1734010324010,2.96,231.22,231.12,5.15043737]
[1734010324412,2.96,231.22,231.09,2.1628]
[1734010324413,33.12439668,231.21,231.09,2.1628]
[1734010324606,33.12439668,231.21,231.1,0.79485844]
[1734010324809,33.12439668,231.17,230.95,33.12439668]
[1734010325012,33.12439668,231.17,231.05,5.18364926]
[1734010325013,2.96,231.16,231.05,5.18364926]
[1734010325317,2.96,231.16,231.06,0.79492748]
[1734010325318,33.12439668,231.13,231.06,0.79492748]
[1734010325609,2.1629,231.09,230.99,2.1637]
[1734010325810,2.96,231.08,231.0,0.79505758]
[1734010326207,2.96,231.08,231.01,0.79505758]
[1734010326622,2.96,231.08,230.93,5.08157384]
[1734010326623,33.12439668,231.05,230.93,5.08157384]
[1734010326915,33.12439668,231.05,230.94,0.79544787]
[1734010327212,33.12439668,231.01,230.9,2.1646]
[1734010327516,2.96,231.0,230.91,0.79557138]
[1734010327711,33.12439668,230.97,230.76,33.12439668]
[1734010327916,33.12439668,230.97,230.77,0.79567719]
[1734010328116,33.12439668,230.93,230.78,0.79567719]
[1734010328326,33.12439668,230.93,230.79,0.79567719]
[1734010328327,2.96,230.92,230.79,0.79567719]
[1734010328619,5.1245,230.92,230.81,2.1654]
[1734010328818,33.12439668,230.89,230.82,0.79567719]
[1734010329022,33.12439668,230.89,230.83,0.7958761]
[1734010329319,33.12439668,230.89,230.68,33.12439668]
[1734010329617,33.12439668,230.89,230.76,5.25560034]
[1734010329818,33.12439668,230.85,230.77,0.79587083]
[1734010330016,2.96,230.84,230.78,0.79587083]
[1734010330315,33.12439668,230.81,230.78,0.79587083]
[1734010330812,33.12439668,230.81,230.71,2.1664]
[1734010331016,35.28989668,230.81,230.69,2.16741081]
[1734010331217,33.12439668,230.77,230.69,2.16741081]
[1734010331416,33.12439668,230.73,230.69,2.16741081]
[1734010331615,2.96,230.72,230.33,12.96]
[1734010331916,33.12439668,230.65,230.59,2.1675]
[1734010332120,2.96,230.64,230.46,2.96]
[1734010332411,2.96,230.64,230.52,2.1681]
[1734010332814,2.1672,230.63,230.5,2.1684]
[1734010333111,33.12439668,230.61,230.5,2.1684]
[1734010333310,33.12439668,230.57,230.5,2.1684]
[1734010333511,33.12439668,230.53,230.47,2.1686]
[1734010333715,33.12439668,230.53,230.36,2.98]
[1734010334106,33.12439668,230.49,230.32,2.98]
[1734010334305,33.12439668,230.49,230.39,2.1693]
[1734010334306,2.98,230.48,230.39,2.1693]
[1734010334512,2.98,230.48,230.27,2.98]
[1734010334715,2.98,230.48,230.3,5.32639971]
[1734010334912,33.12439668,230.45,230.32,2.17]
[1734010335114,2.98,230.48,230.21,2.98]
[1734010335115,33.12439668,230.41,230.21,2.98]
[1734010335315,33.12439668,230.37,229.98,4.3466]
[1734010335509,33.12439668,230.33,230.22,2.171]
[1734010335709,33.12439668,230.33,230.0,47.04]
[1734010335710,33.12439668,230.29,230.0,2.0]
[1734010336013,33.12439668,230.21,230.0,35.12439668]
[1734010336210,33.12439668,230.17,230.11,2.172]
[1734010336417,33.12439668,230.16,230.0,2.0]
[1734010336613,33.12439668,230.16,230.11,5.19950175]
[1734010336814,3.18,230.2,230.0,2.0]
[1734010336815,33.12439668,230.12,230.06,2.1725]
[1734010337019,33.12439668,230.07,230.01,2.69645617]
[1734010337713,33.12439668,230.07,230.0,2.0]
[1734010337714,33.12439668,230.03,230.0,2.0]
[1734010337912,33.12439668,230.03,229.89,5.33664637]
[1734010337913,3.4,230.02,229.89,5.33664637]
[1734010338111,33.12439668,229.97,229.78,3.4]
[1734010338319,33.12439668,229.93,229.73,33.12439668]
[1734010338513,3.4,229.92,229.74,2.17637329]
[1734010338715,33.12439668,229.89,229.74,2.17637329]
[1734010339225,3.4,229.92,229.74,2.17637329]
[1734010339226,33.12439668,229.85,229.74,2.17637329]
[1734010339527,33.12439668,229.77,229.56,3.4]
[1734010339715,33.12439668,229.77,229.59,5.144008]
[1734010339716,36.52439668,229.77,229.59,5.144008]
[1734010339914,33.12439668,229.69,229.46,33.12439668]
[1734010340118,33.12439668,229.65,229.6,0.79921828]
[1734010340620,33.12439668,229.61,229.19,33.12439668]
[1734010340824,33.12439668,229.49,229.25,33.12439668]
[1734010341121,33.12439668,229.45,229.34,5.35185726]
[1734010341318,33.12439668,229.45,229.13,4.58]
[1734010341513,33.12439668,229.41,229.21,5.31634532]
[1734010341827,5.1471414,229.46,229.14,4.58]
[1734010341828,33.12439668,229.36,229.14,4.58]
[1734010342117,33.12439668,229.4,229.17,5.15288598]
[1734010342322,5.1471414,229.46,229.19,33.12439668]
[1734010342621,12.95,229.92,229.45,66.24879336]
[1734010342816,5.3095393,229.46,229.45,45.14]
[1734010343020,4.3477,229.93,229.45,116.20879336]
[1734010343221,33.12439668,230.1,229.69,33.12439668]
[1734010343422,6.10103432,230.09,229.69,33.12439668]
[1734010343724,5.14647441,229.71,229.62,33.12439668]
[1734010343918,4.19560856,229.74,229.68,33.12439668]
[1734010344119,1.0,229.92,229.73,33.12439668]
[1734010344319,5.23114272,229.83,229.81,2.1748]
[1734010344518,5.23114272,229.83,229.58,33.12439668]
[1734010344519,5.23114272,229.83,229.65,33.12439668]
[1734010344817,5.23114272,229.83,229.37,5.25884285]
[1734010345018,2.95456432,230.09,229.7,33.12439668]
[1734010345213,5.28549768,229.88,229.76,33.12439668]
[1734010345415,7.45979768,229.88,229.74,2.1755]
[1734010345619,5.28549768,229.88,229.67,33.12439668]
[1734010346717,5.28549768,229.88,229.6,5.29948447]
[1734010346718,33.12439668,229.79,229.6,5.29948447]
[1734010346922,33.12439668,229.84,229.6,5.29948447]
[1734010347220,33.12439668,229.95,229.6,5.29948447]
[1734010347221,38.47086239,229.89,229.62,33.12439668]
[1734010347419,33.12439668,229.83,229.6,5.29948447]
[1734010347625,33.12439668,229.78,229.6,5.29948447]
[1734010347819,33.12439668,229.83,229.6,5.29948447]
[1734010348420,33.12439668,229.72,229.6,5.29948447]
[1734010348731,33.12439668,229.77,229.6,5.29948447]
[1734010349027,33.12439668,229.73,229.6,5.29948447]
[1734010349419,33.12439668,229.83,229.6,5.29948447]
[1734010349619,33.12439668,229.74,229.6,5.29948447]
[1734010349817,1.0,229.88,229.6,5.29948447]
[1734010350020,33.12439668,229.81,229.6,5.29948447]
[1734010350221,33.12439668,229.74,229.6,5.29948447]
[1734010350625,33.12439668,229.74,229.64,2.1765]
[1734010350832,33.12439668,229.74,229.6,5.29948447]
[1734010351024,33.12439668,229.79,229.6,5.29948447]
[1734010351328,33.12439668,229.83,229.6,5.29948447]
[1734010351531,33.12439668,229.87,229.63,33.12439668]
[1734010351728,33.12439668,229.91,229.67,33.12439668]
[1734010351930,33.12439668,229.95,229.71,33.12439668]
[1734010352235,179.8541324,230.92,229.75,33.12439668]
[1734010352429,33.12439668,229.99,229.81,5.28783566]
[1734010352632,33.12439668,230.0,229.81,5.28783566]
[1734010352835,45.22,230.18,229.81,5.28783566]
[1734010353234,33.12439668,230.04,229.79,33.12439668]
[1734010353428,33.12439668,230.04,229.83,33.12439668]
[1734010353737,33.12439668,230.04,229.76,45.22]
[1734010353738,2.1715,230.17,229.98,5.09262201]
[1734010353933,87.12397758,230.21,229.98,5.09262201]
[1734010354133,87.12397758,230.21,230.07,2.1724]
[1734010354334,87.12397758,230.21,229.98,5.09262201]
[1734010354933,87.12397758,230.21,229.95,33.12439668]
[1734010355136,45.22,230.33,229.95,33.12439668]
[1734010355334,45.22,230.33,230.19,2.1713]
[1734010355335,2.1702,230.31,230.19,2.1713]
[1734010355533,45.22,230.33,230.13,5.09732048]
[1734010355832,50.438569,230.33,230.22,2.1709]
[1734010356036,50.438569,230.33,230.13,5.09732048]
[1734010356037,45.22,230.33,230.13,5.09732048]
[1734010356232,33.12439668,230.26,230.13,5.09732048]
[1734010356426,45.22,230.33,230.24,2.1708]
[1734010356629,33.12439668,230.28,230.13,5.09732048]
[1734010356834,33.12439668,230.29,230.13,5.09732048]
[1734010357033,45.22,230.49,230.13,5.09732048]
[1734010357432,2.1692,230.42,230.23,2.1709]
[1734010357635,33.12439668,230.32,230.11,33.12439668]
[1734010357837,1.0,230.48,230.11,33.12439668]
[1734010358142,5.3431931,230.45,230.27,5.32807135]
[1734010358640,2.1692,230.42,230.29,2.1703]
[1734010358848,33.12439668,230.34,230.27,5.32807135]
[1734010359042,33.12439668,230.34,230.27,3.13357135]
[1734010359342,33.12439668,230.29,230.02,33.12439668]
[1734010359536,33.12439668,230.29,230.2,5.33503395]
[1734010359739,33.12439668,230.29,230.2,7.50623395]
[1734010360136,33.12439668,230.25,230.06,33.12439668]
[1734010360333,33.12439668,230.25,229.97,45.22]
[1734010360536,33.12439668,230.16,230.09,5.17399795]
[1734010360740,33.12439668,230.16,229.74,45.2]
[1734010361244,33.12439668,230.16,230.07,5.11875583]
[1734010361640,33.12439668,230.2,230.07,5.11875583]
[1734010361839,33.12439668,230.24,230.19,2.1712]
[1734010362036,33.12439668,230.24,230.07,5.11875583]
[1734010362240,5.26624187,230.31,230.07,5.11875583]
[1734010362241,33.12439668,230.2,230.07,5.11875583]
[1734010362545,1.4482,230.33,230.09,33.12439668]
[1734010362940,1.4482,230.33,230.22,2.1709]
[1734010363138,1.4482,230.33,230.09,33.12439668]
[1734010363339,1.4482,230.33,230.07,5.11875583]
[1734010363340,33.12439668,230.26,230.07,5.11875583]
[1734010363747,33.12439668,230.22,230.07,5.11875583]
[1734010364043,33.12439668,230.17,230.09,2.1722]
[1734010364245,33.12439668,230.17,229.72,45.2]
[1734010364246,33.12439668,230.17,229.93,33.12439668]
[1734010364439,2.171,230.23,229.83,1.3772]
[1734010364644,33.12439668,230.26,230.03,38.36284639]
[1734010364838,33.12439668,230.3,230.07,33.12439668]
[1734010365450,5.14608727,230.29,230.07,33.12439668]
[1734010365641,33.12439668,230.2,230.03,5.23844971]
[1734010365837,33.12439668,230.23,230.03,5.23844971]
[1734010366043,35.29539668,230.23,230.11,2.172]
[1734010366241,33.12439668,230.23,230.03,5.23844971]
[1734010366451,1.0,230.28,230.03,5.23844971]
[1734010366452,33.12439668,230.26,230.03,5.23844971]
[1734010366845,5.14608727,230.29,230.06,33.12439668]
[1734010367148,38.27048395,230.29,230.25,2.1707]
[1734010367447,1.4482,230.31,230.1,33.12439668]
[1734010367651,1.4482,230.31,230.14,33.12439668]
[1734010368051,1.4482,230.31,230.2,5.10282094]
[1734010368345,1.4482,230.31,230.1,33.12439668]
[1734010368346,1.4482,230.31,230.23,2.1709]
[1734010368551,33.12439668,230.29,230.15,0.79797975]
[1734010368845,33.12439668,230.28,230.07,33.12439668]
[1734010369047,1.4482,230.31,230.11,33.12439668]
[1734010369353,1.4482,230.31,230.11,38.33199476]
[1734010369943,33.12439668,230.4,230.19,33.12439668]
[1734010370453,33.12439668,230.36,230.15,33.12439668]
[1734010371048,33.12439668,230.36,230.23,5.10176742]
[1734010371245,33.12439668,230.4,230.28,2.1704]
[1734010371443,33.12439668,230.4,230.23,5.10176742]
[1734010372647,33.12439668,230.44,230.23,5.10176742]
[1734010372841,33.12439668,230.44,230.23,38.2261641]
[1734010373044,1.3289,230.47,230.27,33.12439668]
[1734010373547,1.3289,230.47,230.28,0.79758455]
[1734010373854,1.3289,230.47,230.43,2.169]
[1734010374048,33.12439668,230.52,230.31,33.12439668]
[1734010374246,1.4475,230.61,230.5,2.1683]
[1734010374247,33.12439668,230.57,230.5,2.1683]
[1734010374451,33.12439668,230.57,230.36,33.12439668]
[1734010374652,33.12439668,230.57,230.37,0.79717102]
[1734010374851,33.12439668,230.57,230.54,2.168]
[1734010375156,2.8473,230.6,230.4,38.40049946]
[1734010375348,2.8473,230.6,230.57,2.1677]
[1734010375651,5.2092166,230.68,230.48,33.12439668]
[1734010375855,5.2092166,230.68,230.49,0.79688097]
[1734010376152,33.12439668,230.69,230.49,0.79688097]
[1734010376347,33.12439668,230.69,230.5,0.79688097]
[1734010376650,5.2258761,230.69,230.63,2.1671]
[1734010376844,5.2258761,230.69,230.52,33.12439668]
[1734010377250,5.2258761,230.69,230.56,5.2373295]
[1734010377445,5.2258761,230.69,230.48,33.12439668]
[1734010377654,5.2258761,230.69,230.53,5.15351141]
[1734010378144,5.2258761,230.69,230.59,2.1675]
[1734010378345,5.2258761,230.69,230.53,5.15351141]
[1734010378346,1.4289,230.7,230.53,5.15351141]
[1734010378546,1.4289,230.7,230.56,33.12439668]
[1734010378748,2.8473,230.74,230.6,33.12439668]
[1734010379154,1.4272,230.74,230.64,33.12439668]
[1734010379353,1.3155,230.82,230.64,33.12439668]
[1734010379861,1.3155,230.82,230.68,33.12439668]
[1734010380354,33.12439668,230.95,230.72,33.12439668]
[1734010380555,45.12,230.98,230.62,33.12439668]
[1734010380556,5.11611175,230.92,230.76,33.12439668]
[1734010380854,1.4269,230.97,230.68,5.16190749]
[1734010380855,1.4269,230.97,230.8,33.12439668]
[1734010381255,1.4269,230.97,230.81,2.1654]
[1734010381447,1.4269,230.97,230.75,33.12439668]
[1734010381647,2.1643,230.94,230.8,5.11316853]
[1734010381849,1.4269,230.97,230.8,5.11316853]
[1734010382051,1.4269,230.97,230.81,0.79581969]
[1734010382251,1.4269,230.97,230.83,33.12439668]
[1734010382455,1.3621,231.0,230.87,33.12439668]
[1734010383149,1.3621,231.0,230.88,0.79553322]
[1734010383348,1.3621,231.0,230.8,5.11316853]
[1734010383555,2.1643,230.94,230.81,0.79559147]
[1734010383859,33.12439668,230.97,230.85,2.165]
[1734010384049,33.12439668,230.97,230.7,1.4084]
[1734010384050,2.1638,231.0,230.86,0.79559147]
[1734010384251,5.08093831,231.05,230.84,33.12439668]
[1734010384450,34.55129668,231.06,230.84,33.12439668]
[1734010384451,34.55129668,231.06,230.85,0.79567056]
[1734010384652,1.4269,231.06,230.88,33.12439668]
[1734010385763,34.55129668,231.06,230.84,33.12439668]
[1734010385950,34.55129668,231.06,230.9,2.1646]
[1734010386154,34.55129668,231.06,230.84,33.12439668]
[1734010386353,1.4269,231.06,230.9,5.26322119]
[1734010386556,5.09650578,231.1,230.92,33.12439668]
[1734010386753,1.3842,231.11,230.92,33.12439668]
[1734010387153,1.3842,231.11,230.9,5.26322119]
[1734010387154,33.12439668,231.1,230.9,5.26322119]
[1734010387763,1.3842,231.11,230.92,33.12439668]
[1734010387952,1.3842,231.11,230.96,33.12439668]
[1734010388159,6.59692095,231.15,230.96,33.12439668]
[1734010388160,1.3498,231.15,230.96,33.12439668]
[1734010388458,1.3498,231.15,230.9,5.26322119]
[1734010388459,1.3498,231.15,231.0,33.12439668]
[1734010388652,1.3498,231.15,230.96,33.12439668]
[1734010388858,1.3498,231.15,231.01,2.1635]
[1734010389060,1.3498,231.15,230.96,33.12439668]
[1734010389261,1.3498,231.15,231.05,5.29330829]
[1734010389455,33.12439668,231.14,230.99,2.1638]
[1734010389663,33.12439668,231.1,230.91,1.4438]
[1734010389864,33.12439668,231.14,230.98,5.19568793]
[1734010390558,1.3498,231.15,230.98,5.19568793]
[1734010391367,33.12439668,231.14,230.98,5.19568793]
[1734010391561,2.1629,231.09,230.98,5.19568793]
[1734010391756,33.12439668,231.14,230.98,5.19568793]
[1734010391953,2.1628,231.1,231.01,2.1635]
[1734010392159,1.3498,231.15,230.98,5.19568793]
[1734010392561,33.12439668,231.14,230.98,5.19568793]
[1734010392868,33.12439668,231.1,230.89,1.3958]
[1734010393063,33.12439668,231.1,230.96,5.13078371]
[1734010393261,1.3498,231.15,230.96,5.13078371]
[1734010393262,33.12439668,231.14,230.96,5.13078371]
[1734010393457,33.12439668,231.14,230.96,38.25518039]
[1734010393768,33.12439668,231.14,230.97,0.79523465]
[1734010393958,33.12439668,231.14,230.96,5.13078371]
[1734010393959,1.3498,231.15,230.96,38.25518039]
[1734010394153,1.3498,231.15,230.98,0.79519208]
[1734010394154,2.1626,231.12,230.98,0.79519208]
[1734010394357,33.12439668,231.14,230.96,5.13078371]
[1734010394563,2.1631,231.07,230.97,2.164]
[1734010394756,33.12439668,231.05,230.89,1.3958]
[1734010394956,33.12439668,231.05,230.9,0.79532134]
[1734010395162,2.1642,230.95,230.91,0.79532134]
[1734010395362,33.12439668,231.01,230.91,0.79532134]
[1734010395568,33.12439668,231.01,230.85,5.07667081]
[1734010395866,2.1647,230.9,230.76,34.51329668]
[1734010396065,33.12439668,230.93,230.72,33.12439668]
[1734010396364,33.12439668,230.93,230.73,0.79577423]
[1734010396569,33.12439668,230.93,230.76,5.07199473]
[1734010396863,6.67091643,231.0,230.76,5.07199473]
[1734010396864,33.12439668,230.97,230.76,38.19639141]
[1734010397057,6.67091643,231.0,230.8,33.12439668]
[1734010397256,1.4337,231.0,230.84,33.12439668]
[1734010397457,2.1638,230.99,230.9,2.1646]
[1734010397655,2.1638,230.99,230.84,33.12439668]
[1734010397863,33.12439668,230.98,230.76,6.42469473]
[1734010398063,33.12439668,230.9,230.76,5.07199473]
[1734010398259,33.12439668,230.9,230.77,1.59154533]
[1734010398463,33.12439668,230.98,230.77,1.59154533]
[1734010398666,33.12439668,230.98,230.78,0.79570662]
[1734010398866,33.12439668,230.91,230.77,0.79583871]
[1734010399560,2.1656,230.81,230.77,0.79583871]
[1734010399768,33.12439668,230.87,230.77,0.79583871]
[1734010400060,33.12439668,230.83,230.62,33.12439668]
[1734010400562,2.92272,230.86,230.69,5.31128797]
[1734010400759,33.12439668,230.8,230.58,33.12439668]
[1734010400969,33.12439668,230.84,230.62,33.12439668]
[1734010401161,2.1654,230.82,230.68,2.1666]
[1734010401356,33.12439668,230.84,230.68,5.11480462]
[1734010401862,33.12439668,230.84,230.57,1.4083]
[1734010401863,33.12439668,230.8,230.58,33.12439668]
[1734010402365,33.12439668,230.76,230.59,0.79640168]
[1734010402557,33.12439668,230.76,230.57,1.4083]
[1734010402558,33.12439668,230.76,230.6,0.79640168]
[1734010402760,33.12439668,230.8,230.62,5.21478437]
[1734010402959,5.28113973,230.85,230.66,33.12439668]
[1734010403163,2.92272,230.86,230.7,33.12439668]
[1734010403164,0.08872,230.86,230.7,33.12439668]
[1734010403357,45.04,230.95,230.74,33.12439668]
[1734010403565,45.04,230.95,230.7,33.12439668]
[1734010403566,33.12439668,230.91,230.7,33.12439668]
[1734010403766,33.12439668,230.87,230.71,0.79616644]
[1734010404165,33.12439668,230.83,230.72,0.79616644]
[1734010404472,2.1661,230.75,230.65,2.167]
[1734010404773,33.12439668,230.79,230.66,0.79628553]
[1734010405068,33.12439668,230.79,230.61,5.14198885]
[1734010405266,1.4027,230.78,230.61,5.14198885]
[1734010405562,33.12439668,230.75,230.61,5.14198885]
[1734010405983,33.12439668,230.75,230.5,33.12439668]
[1734010406260,33.12439668,230.71,230.51,0.79659845]
[1734010406565,33.12439668,230.71,230.52,0.79659845]
[1734010406769,33.12439668,230.71,230.56,5.12586487]
[1734010407067,6.68309159,230.77,230.56,5.12586487]
[1734010407068,6.68309159,230.77,230.58,33.12439668]
[1734010407264,1.3679,230.77,230.58,33.12439668]
[1734010407670,33.12439668,230.76,230.59,0.79661498]
[1734010407865,2.1664,230.71,230.62,2.1672]
[1734010408170,33.12439668,230.72,230.56,5.12586487]
[1734010408466,33.12439668,230.76,230.57,0.7965776]
[1734010408666,33.12439668,230.72,230.56,5.12586487]
[1734010408967,2.1671,230.64,230.57,0.79666805]
[1734010409269,2.1674,230.61,230.53,2.1681]
[1734010409472,2.1674,230.61,230.43,2.7653]
[1734010409473,33.12439668,230.63,230.43,2.7653]
[1734010409667,1.4118,230.71,230.3,4.3406]
[1734010409668,33.12439668,230.59,230.3,4.3406]
[1734010409866,33.12439668,230.59,230.44,0.79686056]
[1734010410266,33.12439668,230.59,230.44,5.18902541]
[1734010410468,33.12439668,230.59,230.47,2.1686]
[1734010410469,2.168,230.55,230.47,2.1686]
[1734010410669,33.12439668,230.55,230.45,0.79686056]
[1734010410867,33.12439668,230.51,230.24,0.79768077]
[1734010411180,5.19422692,230.57,230.27,33.12439668]
[1734010411181,33.12439668,230.47,230.27,33.12439668]
[1734010411563,33.12439668,230.47,230.25,1.4575]
[1734010411564,1.3583,230.54,230.34,5.33727553]
[1734010411872,1.3719,230.61,230.43,33.12439668]
[1734010412070,35.29199668,230.59,230.45,2.1688]
[1734010412364,35.29199668,230.59,230.44,0.79706244]
[1734010412365,33.12439668,230.59,230.35,33.12439668]
[1734010412567,6.49722596,230.61,230.43,33.12439668]
[1734010412568,1.3719,230.61,230.43,33.12439668]
[1734010412762,1.3719,230.61,230.44,0.79704441]
[1734010412964,1.3719,230.61,230.45,0.79704441]
[1734010413163,1.4523,230.62,230.47,33.12439668]